fUSD/lending_fUSD_20250120
["ID","MTS","AMOUNT","RATE_DAILY","PERIOD"]
[349766826,1737417068802,-500.0,0.00021668,2]
[349766827,1737417068908,-205.46453777,0.00021669,3]
[349766828,1737417068930,-846.0,0.0002167,2]
[349766829,1737417068939,-4917.01,0.00021685,7]
[349766830,1737417068948,-4917.01,0.00021685,7]
[349766831,1737417068957,-4917.01,0.00021685,7]
[349766832,1737417068966,-4917.01,0.00021685,7]
[349766833,1737417068975,-429.93842547,0.00021698,2]
[349766834,1737417068984,-205.46453777,0.00021708,3]
[349766835,1737417068994,-512.5820959,0.00021716,2]
[349766836,1737417069002,-1537.98,0.00021716,2]
[349766837,1737417069012,-837.36,0.00021716,2]
[349766838,1737417069023,-814.47,0.00021716,2]
[349766839,1737417069033,-1868.63,0.00021716,2]
[349766840,1737417069045,-540.34,0.00021716,2]
[349766841,1737417069054,-1038.77,0.00021716,2]
[349766842,1737417069063,-713.13,0.00021716,2]
[349766843,1737417069073,-1164.98,0.00021716,2]
[349766844,1737417069082,-1837.24,0.00021716,2]
[349766845,1737417069091,-1286.57,0.00021716,2]
[349766846,1737417069100,-682.9,0.00021716,2]
[349766847,1737417069110,-683.03,0.00021716,2]
[349766848,1737417069121,-500.0,0.00021716,2]
[349766849,1737417069130,-1860.39,0.00021716,2]
[349766850,1737417069139,-892.7,0.00021716,2]
[349766851,1737417069149,-500.0,0.00021716,2]
[349766852,1737417069158,-500.0,0.00021716,2]
[349766853,1737417069170,-598.0,0.00021716,2]
[349766854,1737417069180,-626.45,0.00021716,2]
[349766855,1737417069192,-2220.13,0.00021716,2]
[349766856,1737417069201,-1849.02,0.00021716,2]
[349766857,1737417069210,-500.0,0.00021716,2]
[349766858,1737417069220,-500.0,0.00021717,2]
[349766859,1737417069230,-514.18,0.00021717,2]
[349766860,1737417069239,-233.461181,0.00021717,2]
[349766861,1737417069249,-500.0,0.00021717,2]
[349766862,1737417069259,-500.0,0.00021717,2]
[349766863,1737417069268,-957.55,0.00021717,2]
[349766864,1737417069277,-386.683086,0.00021717,2]
[349766865,1737417069286,-1758.19,0.00021717,2]
[349766866,1737417069298,-1187.43,0.00021717,2]
[349766867,1737417069307,-500.0,0.00021717,2]
[349766868,1737417069316,-618.43,0.00021717,2]
[349766869,1737417069326,-597.06,0.00021717,2]
[349766870,1737417069335,-764.65,0.00021717,2]
[349766871,1737417069345,-746.84,0.00021717,2]
[349766872,1737417069355,-1744.63,0.00021717,2]
[349766873,1737417069364,-1275.72,0.00021717,2]
[349766874,1737417069373,-500.0,0.00021717,2]
[349766875,1737417069383,-500.0,0.00021717,2]
[349766876,1737417069392,-1525.72,0.00021717,2]
[349766877,1737417069401,-500.0,0.00021717,2]
[349766878,1737417069411,-1284.73,0.00021717,2]
[349766879,1737417069420,-2470.88,0.00021717,2]
[349766880,1737417069430,-1738.49,0.00021717,2]
[349766881,1737417069439,-1865.01,0.00021717,2]
[349766882,1737417069448,-500.0,0.00021717,2]
[349766883,1737417069457,-268.62191301,0.00021717,2]
[349766884,1737417069467,-809.74,0.00021717,2]
[349766885,1737417069476,-884.03,0.00021717,2]
[349766886,1737417069486,-500.0,0.00021717,2]
[349766887,1737417069495,-1114.14,0.00021717,2]
[349766888,1737417069504,-555.22,0.00021717,2]
[349766889,1737417069513,-205.46453777,0.00021746,3]
[349766890,1737417069523,-3000.0,0.0002178,2]
[349766891,1737417069532,-205.46453777,0.00021785,3]
[349766892,1737417069542,-1000.0,0.000218,2]
[349766893,1737417069552,-3000.0,0.000218,2]
[349766894,1737417069561,-500.0,0.00021805,2]
[349766895,1737417069570,-500.0,0.00021816,2]
[349766896,1737417069580,-500.0,0.00021816,2]
[349766897,1737417069589,-500.0,0.00021816,2]
[349766898,1737417069599,-1219.86,0.00021816,2]
[349766899,1737417069608,-621.68,0.00021816,2]
[349766900,1737417069617,-500.0,0.00021816,2]
[349766901,1737417069626,-969.3,0.00021816,2]
[349766902,1737417069636,-681.26,0.00021816,2]
[349766903,1737417069645,-1642.59,0.00021816,2]
[349766904,1737417069655,-500.0,0.00021816,2]
[349766905,1737417069664,-3555.51,0.00021816,2]
[349766906,1737417069673,-500.0,0.00021816,2]
[349766907,1737417069682,-527.22,0.00021816,2]
[349766908,1737417069691,-507.75,0.00021816,2]
[349766909,1737417069700,-1620.67,0.00021816,2]
[349766910,1737417069710,-506.49,0.00021816,2]
[349766911,1737417069719,-761.08,0.00021816,2]
[349766912,1737417069728,-987.65,0.00021816,2]
[349766913,1737417069737,-500.0,0.00021816,2]
[349766914,1737417069746,-960.52,0.00021816,2]
[349766915,1737417069756,-500.0,0.00021816,2]
[349766916,1737417069765,-1413.51,0.00021816,2]
[349766917,1737417069774,-1222.69,0.00021816,2]
[349766918,1737417069783,-2282.5399,0.0002182,2]
[349766919,1737417069795,-1827.7576,0.0002182,2]
[349766920,1737417069806,-205.46453777,0.00021823,3]
[349766921,1737417069815,-500.0,0.00021824,2]
[349766922,1737417069824,-172.0,0.00021835,2]
[349766923,1737417069834,-1235.90210263,0.0002184,2]
[349766924,1737417069843,-166.0,0.00021854,2]
[349766925,1737417069853,-8500.0,0.00021855,2]
[349766926,1737417069863,-1235.90210263,0.00021855,2]
[349766927,1737417069872,-1235.90210263,0.00021858,2]
[349766928,1737417069882,-166.0,0.0002186,2]
[349766929,1737417069892,-205.46453777,0.00021862,3]
[349766930,1737417069902,-150.0,0.00021869,2]
[349766931,1737417069912,-1235.90210263,0.00021872,2]
[349766932,1737417069922,-3000.0,0.0002188,2]
[349766933,1737417069932,-500.0,0.0002189,2]
[349766934,1737417069941,-500.0,0.0002189,2]
[349766935,1737417069951,-500.0,0.0002189,2]
[349766936,1737417069960,-500.0,0.0002189,2]
[349766937,1737417069970,-500.0,0.0002189,2]
[349766938,1737417069979,-448.96,0.0002189,2]
[349766939,1737417069990,-554.1521,0.0002189,2]
[349766940,1737417070000,-500.0,0.0002189,2]
[349766941,1737417070009,-5800.0,0.00021892,2]
[349766942,1737417070019,-220.0,0.00021897,2]
[349766943,1737417070028,-1235.90210263,0.000219,2]
[349766944,1737417070037,-2000.0,0.000219,2]
[349766945,1737417070051,-14596.939874,0.000219,2]
[349766946,1737417070060,-2000.0,0.000219,2]
[349766947,1737417070069,-2000.0,0.000219,2]
[349766948,1737417070078,-5800.0,0.000219,2]
[349766949,1737417070087,-625.03940628,0.000219,2]
[349766950,1737417070096,-163.85111953,0.000219,2]
[349766951,1737417070106,-49659.19057547,0.000219,2]
[349766952,1737417070115,-36866.12208704,0.000219,2]
[349766953,1737417070124,-666.7177846,0.000219,2]
[349766954,1737417070133,-159.74225505,0.000219,4]
[349766955,1737417070142,-2034.87,0.000219,31]
[349766956,1737417070151,-2034.87,0.000219,31]
[349766957,1737417070159,-2034.87,0.000219,31]
[349766958,1737417070168,-2034.87,0.000219,31]
[349766959,1737417070180,-2034.87,0.000219,31]
[349766960,1737417070189,-2034.87,0.000219,31]
[349766961,1737417070199,-2034.87,0.000219,31]
[349766962,1737417070208,-2034.87,0.000219,31]
[349766963,1737417070218,-2034.87,0.000219,31]
[349766964,1737417070227,-2034.87,0.000219,31]
[349766965,1737417070237,-2034.87,0.000219,31]
[349766966,1737417070246,-2034.87,0.000219,31]
[349766967,1737417070257,-2034.87,0.000219,31]
[349766968,1737417070267,-2034.87,0.000219,31]
[349766969,1737417070277,-2034.87,0.000219,31]
[349766970,1737417070286,-2034.87,0.000219,31]
[349766971,1737417070297,-158.60823912,0.000219,2]
[349766972,1737417070306,-158.60823911,0.000219,2]
[349766973,1737417070315,-205.46453777,0.000219,3]
[349766974,1737417070325,-158.60823911,0.000219,2]
[349766975,1737417070334,-158.60823911,0.000219,2]
[349766976,1737417070343,-1445.22250212,0.000219,2]
[349766977,1737417070352,-10777.3492771,0.000219,2]
[349766978,1737417070362,-1681.0,0.000219,2]
[349766979,1737417070371,-500.0,0.00021917,2]
[349766980,1737417070380,-500.0,0.00021917,2]
[349766981,1737417070389,-500.0,0.00021917,2]
[349766982,1737417070398,-661.37,0.00021917,2]
[349766983,1737417070407,-418.74122655,0.00021917,2]
[349766984,1737417070416,-500.0,0.00021917,2]
[349766985,1737417070426,-500.0,0.00021917,2]
[349766986,1737417070435,-500.0,0.00021917,2]
[349766987,1737417070444,-500.0,0.00021917,2]
[349766988,1737417070453,-500.0,0.00021917,2]
[349766989,1737417070463,-500.0,0.00021917,2]
[349766990,1737417070472,-1080.67,0.00021917,2]
[349766991,1737417070481,-174.09317278,0.00021917,2]
[349766992,1737417070491,-500.0,0.00021917,2]
[349766993,1737417070500,-500.0,0.00021917,2]
[349766994,1737417070509,-500.0,0.00021917,2]
[349766995,1737417070518,-500.0,0.00021917,2]
[349766996,1737417070527,-500.0,0.00021917,2]
[349766997,1737417070536,-500.0,0.00021917,2]
[349766998,1737417070548,-500.0,0.00021917,2]
[349766999,1737417070558,-500.0,0.00021917,2]
[349767000,1737417070568,-500.0,0.00021917,2]
[349767001,1737417070577,-500.0,0.00021917,2]
[349767002,1737417070587,-500.0,0.00021917,2]
[349767003,1737417070596,-500.0,0.00021917,2]
[349767004,1737417070605,-500.0,0.00021917,2]
[349767005,1737417070614,-500.0,0.00021917,2]
[349767006,1737417070624,-500.0,0.00021917,2]
[349767007,1737417070633,-500.0,0.00021917,2]
[349767008,1737417070642,-500.0,0.00021917,2]
[349767009,1737417070651,-500.0,0.00021917,2]
[349767010,1737417070660,-500.0,0.00021917,2]
[349767011,1737417070669,-500.0,0.00021917,2]
[349767012,1737417070679,-500.0,0.00021917,2]
[349767013,1737417070688,-500.0,0.00021917,2]
[349767014,1737417070697,-500.0,0.00021917,2]
[349767015,1737417070810,-500.0,0.00021917,2]
[349767016,1737417070820,-500.0,0.00021917,2]
[349767017,1737417070830,-500.0,0.00021917,2]
[349767018,1737417070840,-500.0,0.00021917,2]
[349767019,1737417070850,-500.0,0.00021917,2]
[349767020,1737417070859,-500.0,0.00021917,2]
[349767021,1737417070868,-500.0,0.00021917,2]
[349767022,1737417070878,-500.0,0.00021917,2]
[349767023,1737417070887,-500.0,0.00021917,2]
[349767024,1737417070896,-500.0,0.00021917,2]
[349767025,1737417070905,-611.04,0.00021917,2]
[349767026,1737417070915,-500.0,0.00021917,2]
[349767027,1737417070924,-500.0,0.00021917,2]
[349767028,1737417070933,-500.0,0.00021917,2]
[349767029,1737417070943,-500.0,0.00021917,2]
[349767030,1737417070952,-500.0,0.00021917,2]
[349767031,1737417070961,-500.0,0.00021917,2]
[349767032,1737417070970,-542.98,0.00021917,2]
[349767033,1737417070979,-500.0,0.00021917,2]
[349767034,1737417070988,-500.0,0.00021917,2]
[349767035,1737417070996,-500.0,0.00021917,2]
[349767036,1737417071006,-500.0,0.00021917,2]
[349767037,1737417071015,-500.0,0.00021917,2]
[349767038,1737417071025,-500.0,0.00021917,2]
[349767039,1737417071034,-500.0,0.00021917,2]
[349767040,1737417071047,-500.0,0.00021917,2]
[349767041,1737417071057,-500.0,0.00021917,2]
[349767042,1737417071066,-540.2,0.00021917,2]
[349767043,1737417071076,-500.0,0.00021917,2]
[349767044,1737417071086,-500.0,0.00021917,2]
[349767045,1737417071095,-548.85,0.00021917,2]
[349767046,1737417071105,-500.0,0.00021917,2]
[349767047,1737417071115,-500.0,0.00021917,2]
[349767048,1737417071124,-500.0,0.00021917,2]
[349767049,1737417071134,-500.0,0.00021917,2]
[349767050,1737417071144,-500.0,0.00021917,2]
[349767051,1737417071154,-500.0,0.00021917,2]
[349767052,1737417071163,-500.0,0.00021917,2]
[349767053,1737417071177,-500.0,0.00021917,2]
[349767054,1737417071187,-500.0,0.00021917,2]
[349767055,1737417071196,-500.0,0.00021917,2]
[349767056,1737417071207,-500.0,0.00021917,2]
[349767057,1737417071216,-500.0,0.00021917,2]
[349767058,1737417071226,-500.0,0.00021917,2]
[349767059,1737417071235,-500.0,0.00021917,2]
[349767060,1737417071245,-500.0,0.00021917,2]
[349767061,1737417071255,-500.0,0.00021917,2]
[349767062,1737417071264,-669.36,0.00021917,2]
[349767063,1737417071273,-500.0,0.00021917,2]
[349767064,1737417071282,-985.22,0.00021917,2]
[349767065,1737417071291,-500.0,0.00021917,2]
[349767066,1737417071305,-500.0,0.00021917,2]
[349767067,1737417071314,-500.0,0.00021917,2]
[349767068,1737417071323,-777.3,0.00021917,2]
[349767069,1737417071332,-544.49,0.00021917,2]
[349767070,1737417071342,-500.0,0.00021917,2]
[349767071,1737417071351,-1099.02,0.00021917,2]
[349767072,1737417071360,-1845.56,0.00021917,2]
[349767073,1737417071370,-500.0,0.00021917,2]
[349767074,1737417071379,-878.23,0.00021917,2]
[349767075,1737417071388,-500.0,0.00021917,2]
[349767076,1737417071397,-500.0,0.00021917,2]
[349767077,1737417071406,-500.0,0.00021917,3]
[349767078,1737417071415,-500.0,0.00021917,3]
[349767079,1737417071424,-561.37,0.00021917,2]
[349767080,1737417071433,-500.0,0.00021917,3]
[349767081,1737417071443,-500.0,0.00021917,3]
[349767082,1737417071452,-500.0,0.00021917,3]
[349767083,1737417071461,-500.0,0.00021917,3]
[349767084,1737417071470,-500.0,0.00021917,3]
[349767085,1737417071480,-500.0,0.00021917,3]
[349767086,1737417071490,-500.0,0.00021917,3]
[349767087,1737417071499,-500.0,0.00021917,3]
[349767088,1737417071509,-2476.57,0.00021917,2]
[349767089,1737417071518,-821.42,0.00021917,2]
[349767090,1737417071527,-1198.86,0.00021917,2]
[349767091,1737417071536,-500.0,0.00021917,2]
[349767092,1737417071550,-500.0,0.00021917,2]
[349767093,1737417071559,-500.0,0.00021917,2]
[349767094,1737417071569,-2121.34,0.00021917,2]
[349767095,1737417071578,-500.0,0.00021917,2]
[349767096,1737417071588,-974.3,0.00021917,2]
[349767097,1737417071597,-792.0,0.00021917,2]
[349767098,1737417071607,-500.0,0.00021917,2]
[349767099,1737417071616,-1319.21,0.00021917,2]
[349767100,1737417071625,-500.0,0.00021917,2]
[349767101,1737417071635,-2587.78,0.00021917,2]
[349767102,1737417071645,-500.0,0.00021917,2]
[349767103,1737417071654,-500.0,0.00021917,2]
[349767104,1737417071663,-995.37,0.00021917,2]
[349767105,1737417071672,-500.0,0.00021917,2]
[349767106,1737417071682,-500.0,0.00021917,2]
[349767107,1737417071691,-500.0,0.00021917,2]
[349767108,1737417071701,-577.54,0.00021917,2]
[349767109,1737417071710,-500.0,0.00021917,2]
[349767110,1737417071719,-500.0,0.00021917,2]
[349767111,1737417071729,-1101.58,0.00021917,2]
[349767112,1737417071739,-500.0,0.00021917,2]
[349767113,1737417071748,-500.0,0.00021917,2]
[349767114,1737417071758,-500.0,0.00021917,2]
[349767115,1737417071768,-500.0,0.00021917,2]
[349767116,1737417071779,-1460.32,0.00021917,2]
[349767117,1737417071787,-537.94,0.00021917,2]
[349767118,1737417071800,-1069.22,0.00021917,2]
[349767119,1737417071810,-500.0,0.00021917,2]
[349767120,1737417071819,-500.0,0.00021917,2]
[349767121,1737417071828,-4000.0,0.00021918,2]
[349767122,1737417071838,-150.0,0.00021918,2]
[349767123,1737417071848,-398.8967656,0.0002192,2]
[349767124,1737417071859,-398.8967656,0.0002192,2]
[349767125,1737417071868,-398.8967656,0.0002192,2]
[349767126,1737417071877,-398.8967656,0.0002192,2]
[349767127,1737417071886,-398.8967656,0.0002192,2]
[349767128,1737417071895,-398.8967656,0.0002192,2]
[349767129,1737417071904,-398.8967656,0.0002192,2]
[349767130,1737417071913,-398.8967656,0.0002192,2]
[349767131,1737417071922,-398.8967656,0.0002192,2]
[349767132,1737417071931,-398.8967656,0.0002192,2]
[349767133,1737417071941,-398.8967656,0.0002192,2]
[349767134,1737417071950,-398.8967656,0.0002192,2]
[349767135,1737417071960,-398.8967656,0.0002192,2]
[349767136,1737417071969,-398.8967656,0.0002192,2]
[349767137,1737417071978,-398.8967656,0.0002192,2]
[349767138,1737417071987,-398.8967656,0.0002192,2]
[349767139,1737417072001,-398.8967656,0.0002192,2]
[349767140,1737417072010,-398.8967656,0.0002192,2]
[349767141,1737417072021,-398.8967656,0.0002192,2]
[349767142,1737417072030,-398.89,0.0002192,2]
[349767143,1737417072040,-930.75911973,0.0002192,2]
[349767144,1737417072053,-930.75911973,0.0002192,2]
[349767145,1737417072063,-930.75911973,0.0002192,2]
[349767146,1737417072072,-930.75911973,0.0002192,2]
[349767147,1737417072082,-930.75911973,0.0002192,2]
[349767148,1737417072092,-930.75911973,0.0002192,2]
[349767149,1737417072102,-930.75911973,0.0002192,2]
[349767150,1737417072112,-930.75911973,0.0002192,2]
[349767151,1737417072122,-930.75911973,0.0002192,2]
[349767152,1737417072132,-930.75911973,0.0002192,2]
[349767153,1737417072141,-930.75911973,0.0002192,2]
[349767154,1737417072151,-930.75911973,0.0002192,2]
[349767155,1737417072161,-930.75911973,0.0002192,2]
[349767156,1737417072171,-930.75911973,0.0002192,2]
[349767157,1737417072182,-930.75911973,0.0002192,2]
[349767158,1737417072192,-930.75911973,0.0002192,2]
[349767159,1737417072202,-930.75911973,0.0002192,2]
[349767160,1737417072212,-930.75911973,0.0002192,2]
[349767161,1737417072222,-930.75911973,0.0002192,2]
[349767162,1737417072232,-930.75,0.0002192,2]
[349767163,1737417072241,-1059.90963837,0.0002192,2]
[349767164,1737417072252,-1059.90963837,0.0002192,2]
[349767165,1737417072261,-1059.90963837,0.0002192,2]
[349767166,1737417072271,-1059.90963837,0.0002192,2]
[349767167,1737417072280,-1059.90963837,0.0002192,2]
[349767168,1737417072290,-1059.90963837,0.0002192,2]
[349767169,1737417072302,-1059.90963837,0.0002192,2]
[349767170,1737417072312,-1059.90963837,0.0002192,2]
[349767171,1737417072321,-1059.90963837,0.0002192,2]
[349767172,1737417072330,-1059.90963837,0.0002192,2]
[349767173,1737417072340,-1059.90963837,0.0002192,2]
[349767174,1737417072349,-1059.90963837,0.0002192,2]
[349767175,1737417072358,-1059.90963837,0.0002192,2]
[349767176,1737417072367,-1059.90963837,0.0002192,2]
[349767177,1737417072377,-1059.90963837,0.0002192,2]
[349767178,1737417072386,-1059.90963837,0.0002192,2]
[349767179,1737417072395,-1059.90963837,0.0002192,2]
[349767180,1737417072404,-1059.90963837,0.0002192,2]
[349767181,1737417072413,-1059.90963837,0.0002192,2]
[349767182,1737417072422,-1059.9,0.0002192,2]
[349767183,1737417072432,-2473.12248953,0.0002192,2]
[349767184,1737417072441,-2473.12248953,0.0002192,2]
[349767185,1737417072450,-2473.12248953,0.0002192,2]
[349767186,1737417072460,-2473.12248953,0.0002192,2]
[349767187,1737417072469,-2473.12248953,0.0002192,2]
[349767188,1737417072583,-2473.12248953,0.0002192,2]
[349767189,1737417072593,-2473.12248953,0.0002192,2]
[349767190,1737417072603,-2473.12248953,0.0002192,2]
[349767191,1737417072612,-2473.12248953,0.0002192,2]
[349767192,1737417072621,-2473.12248953,0.0002192,2]
[349767193,1737417072630,-2473.12248953,0.0002192,2]
[349767194,1737417072639,-2473.12248953,0.0002192,2]
[349767195,1737417072648,-2473.12248953,0.0002192,2]
[349767196,1737417072658,-2473.12248953,0.0002192,2]
[349767197,1737417072667,-2473.12248953,0.0002192,2]
[349767198,1737417072676,-2473.12248953,0.0002192,2]
[349767199,1737417072686,-2473.12248953,0.0002192,2]
[349767200,1737417072695,-2473.12248953,0.0002192,2]
[349767201,1737417072704,-2473.12248953,0.0002192,2]
[349767202,1737417072713,-2473.12,0.0002192,2]
[349767203,1737417072723,-537.38973346,0.0002192,2]
[349767204,1737417072732,-537.38973346,0.0002192,2]
[349767205,1737417072742,-537.38973346,0.0002192,2]
[349767206,1737417072751,-537.38973346,0.0002192,2]
[349767207,1737417072760,-537.38973346,0.0002192,2]
[349767208,1737417072770,-537.38973346,0.0002192,2]
[349767209,1737417072779,-537.38973346,0.0002192,2]
[349767210,1737417072788,-537.38973346,0.0002192,2]
[349767211,1737417072799,-537.38973346,0.0002192,2]
[349767212,1737417072808,-537.38973346,0.0002192,2]
[349767213,1737417072817,-537.38973346,0.0002192,2]
[349767214,1737417072827,-537.38973346,0.0002192,2]
[349767215,1737417072837,-537.38973346,0.0002192,2]
[349767216,1737417072846,-537.38973346,0.0002192,2]
[349767217,1737417072855,-537.38973346,0.0002192,2]
[349767218,1737417072865,-537.38973346,0.0002192,2]
[349767219,1737417072874,-537.38973346,0.0002192,2]
[349767220,1737417072883,-537.38973346,0.0002192,2]
[349767221,1737417072893,-537.38973346,0.0002192,2]
[349767222,1737417072902,-537.38,0.0002192,2]
[349767223,1737417072911,-1253.90937807,0.0002192,2]
[349767224,1737417072922,-1253.90937807,0.0002192,2]
[349767225,1737417072932,-1253.90937807,0.0002192,2]
[349767226,1737417072942,-1253.90937807,0.0002192,2]
[349767227,1737417072951,-1253.90937807,0.0002192,2]
[349767228,1737417072961,-1253.90937807,0.0002192,2]
[349767229,1737417072971,-1253.90937807,0.0002192,2]
[349767230,1737417072980,-1253.90937807,0.0002192,2]
[349767231,1737417072990,-1253.90937807,0.0002192,2]
[349767232,1737417073000,-1253.90937807,0.0002192,2]
[349767233,1737417073009,-1253.90937807,0.0002192,2]
[349767234,1737417073020,-1253.90937807,0.0002192,2]
[349767235,1737417073031,-1253.90937807,0.0002192,2]
[349767236,1737417073041,-1253.90937807,0.0002192,2]
[349767237,1737417073055,-1253.90937807,0.0002192,2]
[349767238,1737417073066,-1253.90937807,0.0002192,2]
[349767239,1737417073076,-1253.90937807,0.0002192,2]
[349767240,1737417073086,-1253.90937807,0.0002192,2]
[349767241,1737417073097,-1253.90937807,0.0002192,2]
[349767242,1737417073106,-1253.9,0.0002192,2]
[349767243,1737417073116,-39536.68908862,0.00021934,2]
[349767244,1737417073125,-500.0,0.00021942,2]
[349767245,1737417073134,-3000.0,0.0002195,2]
[349767246,1737417073143,-4917.01,0.00021959,7]
[349767247,1737417073153,-4917.01,0.00021959,7]
[349767248,1737417073162,-400.0,0.0002197,2]
[349767249,1737417073176,-476.09307325,0.0002197,2]
[349767250,1737417073186,-104973.0,0.00021973,2]
[349767251,1737417073195,-500.0,0.00021973,2]
[349767252,1737417073204,-150.0,0.00021973,4]
[349767253,1737417073215,-150.0,0.00021973,4]
[349767254,1737417073224,-150.0,0.00021973,4]
[349767255,1737417073232,-150.40627047,0.00021973,4]
[349767256,1737417073242,-1537.98,0.0002199,2]
[349767257,1737417073252,-837.36,0.0002199,2]
[349767258,1737417073262,-814.47,0.0002199,2]
[349767259,1737417073271,-1868.63,0.0002199,2]
[349767260,1737417073280,-540.34,0.0002199,2]
[349767261,1737417073290,-1038.77,0.0002199,2]
[349767262,1737417073301,-713.13,0.0002199,2]
[349767263,1737417073311,-1164.98,0.0002199,2]
[349767264,1737417073320,-1837.24,0.0002199,2]
[349767265,1737417073329,-1286.57,0.0002199,2]
[349767266,1737417073339,-682.9,0.0002199,2]
[349767267,1737417073348,-683.03,0.0002199,2]
[349767268,1737417073357,-500.0,0.0002199,2]
[349767269,1737417073367,-1860.39,0.0002199,2]
[349767270,1737417073376,-892.7,0.0002199,2]
[349767271,1737417073386,-500.0,0.0002199,2]
[349767272,1737417073395,-200.0,0.0002199,8]
[349767273,1737417073404,-500.0,0.0002199,2]
[349767274,1737417073414,-598.0,0.0002199,2]
[349767275,1737417073423,-626.45,0.0002199,2]
[349767276,1737417073432,-2220.13,0.0002199,2]
[349767277,1737417073441,-1849.02,0.0002199,2]
[349767278,1737417073450,-500.0,0.0002199,2]
[349767279,1737417073460,-521.3110304,0.00021991,2]
[349767280,1737417073470,-514.18,0.00021991,2]
[349767281,1737417073479,-233.461181,0.00021991,2]
[349767282,1737417073488,-500.0,0.00021991,2]
[349767283,1737417073497,-500.0,0.00021991,2]
[349767284,1737417073506,-957.55,0.00021991,2]
[349767285,1737417073516,-386.683086,0.00021991,2]
[349767286,1737417073525,-1758.19,0.00021991,2]
[349767287,1737417073534,-1187.43,0.00021991,2]
[349767288,1737417073545,-500.0,0.00021991,2]
[349767289,1737417073554,-618.43,0.00021991,2]
[349767290,1737417073564,-597.06,0.00021991,2]
[349767291,1737417073573,-764.65,0.00021991,2]
[349767292,1737417073582,-746.84,0.00021991,2]
[349767293,1737417073592,-1744.63,0.00021991,2]
[349767294,1737417073601,-1275.72,0.00021991,2]
[349767295,1737417073611,-500.0,0.00021991,2]
[349767296,1737417073621,-500.0,0.00021991,3]
[349767297,1737417073630,-500.0,0.00021991,2]
[349767298,1737417073639,-1525.72,0.00021991,2]
[349767299,1737417073648,-500.0,0.00021991,2]
[349767300,1737417073658,-1284.73,0.00021991,2]
[349767301,1737417073667,-2470.88,0.00021991,2]
[349767302,1737417073678,-1738.49,0.00021991,2]
[349767303,1737417073687,-1865.01,0.00021991,2]
[349767304,1737417073697,-500.0,0.00021991,2]
[349767305,1737417073706,-809.74,0.00021991,2]
[349767306,1737417073715,-884.03,0.00021991,2]
[349767307,1737417073725,-500.0,0.00021991,2]
[349767308,1737417073734,-1114.14,0.00021991,2]
[349767309,1737417073743,-555.22,0.00021991,2]
[349767310,1737417073752,-151.24,0.00021995,2]
[349767311,1737417073761,-456.58944005,0.00021999,10]
[349767312,1737417073770,-2000.0,0.00021999,2]
[349767313,1737417073779,-150.0,0.00021999,2]
[349767314,1737417073787,-2000.0,0.00021999,2]
[349767315,1737417073799,-324.87988418,0.00021999,2]
[349767316,1737417073808,-844.38777927,0.00021999,2]
[349767317,1737417073818,-211.14710454,0.00022,2]
[349767318,1737417073827,-9320752.02936512,0.00022,2]
[349767319,1737417073836,-8557427.88365572,0.00022,2]
[349767320,1737417074143,-12407.40941157,0.00022,2]
[349767321,1737417074155,-599.62931336,0.00022,2]
[349767322,1737417074167,-111320.29018417,0.00022,2]
[349767323,1737417074181,-6536.00000022,0.00022,2]
[349767324,1737417074192,-30656.63,0.00022,2]
[349767325,1737417074204,-926.19250293,0.00022,2]